Cogmind - Beta 14 @@@ ROGUE MODE // 2024.08.08 @ 01:46:33 Player: Alix Result: Destroyed by G-67 Veteran with Plasma Rifle Performance ------------- Evolutions (7) 3500 Regions Visited (10) 2000 Robots Destroyed (24) 120 Value Destroyed (901) 901 Prototype IDs (3) 60 Alien Tech Used (0) 0 Bonus (0) 0 TOTAL SCORE: 6581 Bonus ------- None Cogmind --------- Core Integrity 0/1300 Matter 23/300 Energy 80/100 System Corruption 0% Temperature Cool (12) Movement Walking (120) Location -3/Research Parts ------- > --- POWER (1) -------- (None) > --- PROPULSION (7) --- Myomer Leg > --- UTILITY (10) ----- Large Storage Unit Improved Signal Interpreter Armor Integrity Analyzer > --- WEAPON (3) ------- (None) > --- INVENTORY (15) --- Light Nuclear Core Light Nuclear Core Improved Deuterium Engine Enhanced Biometal Leg Compact Wheel Advanced Thermal Shield Peak State ------------ > --- POWER ------------ Reinforced Deuterium Engine > --- PROPULSION ------- Carbon-fiber Leg Carbon-fiber Leg Carbon-fiber Leg Carbon-fiber Leg Carbon-fiber Leg Flexi-carbon Leg > --- UTILITY ---------- Medium Storage Unit Large Storage Unit Improved Signal Interpreter Terrain Scanner Advanced Terrain Scan Processor Advanced Reaction Control System Core Shielding Improved Focal Shield Improved Force Field > --- WEAPON ----------- Flak Gun Flak Cannon Mini Grenade Launcher > --- INVENTORY -------- Light Nuclear Core Light Nuclear Core Improved Deuterium Engine Wheel Advanced Cryofiber Web Large Storage Unit Autogun Heavy Flak Cannon Heavy Flak Cannon Antimatter Cannon [Rating: 67] Favorites ----------- Power Reinforced Deuterium Engine Engine Reinforced Deuterium Engine Power Core Neutrino Core Reactor Antimatter Reactor Propulsion Carbon-fiber Leg Treads Improved Treads Leg Carbon-fiber Leg Wheel Wheel Utility Medium Storage Unit Device Sensor Array Storage Medium Storage Unit Processor Improved Signal Interpreter Protection Core Shielding Weapon Flak Cannon Energy Gun EM Pulse Gun Energy Cannon HERF Cannon Ballistic Gun Flak Gun Ballistic Cannon Flak Cannon Launcher Mini Grenade Launcher Build | -11 -10 -9 -8 -7 -6 -5 -4 -4 -4 -3 ------- Run | Yrd Mat Mat Mat Fac Fac Fac Fac Upp Upp Res Slots Evolved 14 | . . 2 2 2 2 2 2 . . 2 Power . | . . . . . . . . . . . Propulsion 5 | . . 1 1 . 1 . 1 . . 1 Utility 8 | . . 1 1 2 1 1 1 . . 1 Weapon 1 | . . . . . . 1 . . . . Parts Attached 74 | 6 8 7 14 3 2 7 4 20 1 2 Power 6 | 1 1 1 1 . . . . 1 1 . Engine 4 | 1 1 1 1 . . . . . . . Core 1 | . . . . . . . . 1 . . Reactor 1 | . . . . . . . . . 1 . Propulsion 25 | 2 1 3 6 . . 5 2 5 . 1 Treads 11 | . . 3 6 . . . . 2 . . Leg 11 | 2 1 . . . . 5 2 . . 1 Wheel 3 | . . . . . . . . 3 . . Hover . | . . . . . . . . . . . Flight . | . . . . . . . . . . . Utility 24 | 1 3 1 5 2 2 1 2 7 . . Device 11 | . . 1 1 1 . 1 2 5 . . Storage 7 | 1 2 . 2 . 1 . . 1 . . Processor 3 | . . . . 1 1 . . 1 . . Hackware . | . . . . . . . . . . . Protection 3 | . 1 . 2 . . . . . . . Artifact . | . . . . . . . . . . . Weapon 19 | 2 3 2 2 1 . 1 . 7 . 1 Energy Gun 1 | 1 . . . . . . . . . . Energy Cannon 1 | . . . . . . . . . . 1 Ballistic Gun 9 | 1 3 2 . 1 . . . 2 . . Ballistic Cannon 7 | . . . 2 . . . . 5 . . Launcher 1 | . . . . . . 1 . . . . Special Weapon . | . . . . . . . . . . . Impact Weapon . | . . . . . . . . . . . Slashing Weapon . | . . . . . . . . . . . Piercing Weapon . | . . . . . . . . . . . Special Melee Weapon . | . . . . . . . . . . . Unidentified Prototypes 3 | . 1 1 . . . . . 1 . . Parts Lost 34 | . 2 . . . . . 1 27 . 4 Power 3 | . 1 . . . . . . 1 . 1 Propulsion 9 | . . . . . . . . 9 . . Utility 13 | . . . . . . . 1 11 . 1 Weapon 9 | . 1 . . . . . . 6 . 2 Highest Loss Streak 11 | . 1 . . . . . 1 11 . 4 To Critical Strikes . | . . . . . . . . . . . Average Slot Usage (%) 87 | . 98 88 98 100 93 93 99 72 36 24 Engine 6 | . 13 11 9 7 6 5 5 4 . . Treads 12 | . . 1 35 30 26 20 . 2 . . Leg 10 | . 28 20 . . . 1 31 6 . . Device 11 | . . 11 9 15 8 11 14 14 . . Storage 11 | . 14 11 8 7 13 11 10 13 10 7 Processor 6 | . . . . 7 10 11 10 9 10 9 Protection 9 | . 12 11 17 15 13 11 10 1 . . Ballistic Gun 8 | . 24 22 11 7 6 5 5 4 . . Ballistic Cannon 4 | . . . 6 7 6 5 5 5 5 2 Launcher 2 | . . . . . . 5 5 4 . . Peak Build Rating 67 | 6 12 17 25 32 37 47 63 67 24 25 Average Rating 36 | 4 10 14 22 30 35 39 60 50 23 20 On Entrance 26 | . 6 12 17 25 32 37 47 63 23 24 Naked Turns . | . . . . . . . . . . . Heaviest Build 96 | 13 92 21 41 43 63 64 77 96 54 54 Greatest Support 95 | 20 20 69 92 86 86 86 95 95 16 16 Greatest Overweight (x) 24 | . 4 6 . . . 4 . 24 3 17 Average Overweight (x) . | . . . . . . . . 3 3 6 Largest Inventory Capacity 25 | 8 25 8 10 10 15 15 15 15 15 15 Average Capacity 12 | 7 8 8 9 10 15 15 15 15 15 15 Most Carried 15 | . 8 8 10 10 11 15 14 11 5 7 Average Carried 8 | . 6 7 9 9 10 10 10 7 3 5 Final Capacity 15 | 8 8 8 10 10 15 15 15 15 15 15 Final Carried 15 | . 8 8 10 10 11 15 11 4 3 6 Class Distribution -------------------- 33% | Mutant 20% | Scavenger-Skirmisher 15% | Scavenger-Tank 12% | Skirmisher 8% | Derelict-Gunner 8% | Scavenger-Mutant Dominant Class ---------------- Mutant | -10/Materials Mutant | -9/Materials Mutant | -8/Materials Scavenger-Skirmisher | -7/Factory Scavenger-Mutant | -6/Factory Scavenger-Skirmisher | -5/Factory Scavenger-Tank | -4/Factory Derelict-Gunner | -4/Upper Caves Mutant | -4/Upper Caves Mutant | -3/Research Resources | -11 -10 -9 -8 -7 -6 -5 -4 -4 -4 -3 ----------- Run | Yrd Mat Mat Mat Fac Fac Fac Fac Upp Upp Res Matter Collected 1649 | 210 126 123 254 40 92 114 140 550 . . Remotely . | . . . . . . . . . . . Salvage Created 636 | . 175 123 . 29 13 39 59 198 . . Parts 43 | . 9 14 . 2 3 3 1 11 . . Haulers Intercepted . | . . . . . . . . . . . Recyclers Shooed 1 | . . . . . . 1 . . . . Parts Field Recycled . | . . . . . . . . . . . Retrieved Matter . | . . . . . . . . . . . Parts Self-Destructed 10 | . . . . . . . . 10 . . Prevented . | . . . . . . . . . . . Kills | -11 -10 -9 -8 -7 -6 -5 -4 -4 -4 -3 ------- Run | Yrd Mat Mat Mat Fac Fac Fac Fac Upp Upp Res Combat Hostiles Destroyed 22 | . 4 2 . 1 . 2 2 11 . . Guns 7 | . 4 2 . . . . . 1 . . Cannons 12 | . . . . 1 . 2 2 7 . . AOE 3 | . . . . . . . . 3 . . Classes Destroyed 6 | . 1 2 . 1 1 1 . . . . Builder 1 | . . . . . 1 . . . . . Watcher 1 | . . 1 . . . . . . . . Swarmer 11 | . . . . . . 2 . 9 . . Grunt 6 | . 4 . . . . . 2 . . . Sentry 2 | . . 2 . . . . . . . . Programmer 3 | . . . . 1 . . . 2 . . Best Kill Streak 5 | . 2 2 . 1 1 2 2 5 . . Combat Bots Only 5 | . 2 1 . 1 . 2 2 5 . . Max Kills in Single Turn 3 | . 1 1 . 1 1 1 1 3 . . Gunslinging . | . . . . . . . . . . . Exploded 3 | . . . . . . . . 3 . . Melee . | . . . . . . . . . . . Uniques/NPCs Destroyed . | . . . . . . . . . . . Combat | -11 -10 -9 -8 -7 -6 -5 -4 -4 -4 -3 -------- Run | Yrd Mat Mat Mat Fac Fac Fac Fac Upp Upp Res Hostile Shots Fired 392 | . 34 8 . 6 6 8 26 185 . 119 Missed 100 | . 10 4 . 1 . 1 4 54 . 26 Damage Taken 7252 | . 280 59 . 76 232 141 488 4053 . 1923 Core 2167 | . 56 . . . 16 . 45 741 . 1309 Absorbed by Shields . | . . . . . . . . . . . Reduced by Siege Mode 57 | . . . . . . . . 57 . . Redirected to Shielding 50 | . 12 . . . 4 . 9 25 . . Ignored by Resistances 61 | . . . . . . . . 61 . . Regen/Repaired (Parts) 47 | . . . 47 . . . . . . . Core Remaining (%) 88 | 100 77 100 100 100 98 100 . . 31 . Volleys Fired 120 | . 18 11 . 3 4 4 10 68 . 2 Largest 2 | . 2 2 . 2 2 2 2 2 . 1 Hottest 97 | . 60 46 . 72 72 72 72 97 . 88 Shots Fired 211 | . 36 22 . 6 8 8 20 109 . 2 Gun 125 | . 36 22 . 3 4 4 10 46 . . Cannon 73 | . . . . 3 4 4 10 50 . 2 Launcher 13 | . . . . . . . . 13 . . Special . | . . . . . . . . . . . Kinetic 194 | . 34 22 . 6 8 8 20 96 . . Thermal . | . . . . . . . . . . . Explosive 13 | . . . . . . . . 13 . . Electromagnetic 4 | . 2 . . . . . . . . 2 Robot Hit Streak 26 | . 8 7 . 5 7 5 6 26 . 1 Robot Miss Streak 13 | . 3 5 . 6 7 6 5 13 . . Penetration Max . | . . . . . . . . . . . Secondary Targets 1 | . 1 . . . . . . . . . Max Gunslinging Chain 1 | . 1 . . . . . . . . . Shots Hit Robots 136 | . 26 10 . 6 8 8 20 57 . 1 Core Hits 101 | . 6 5 . 6 5 11 21 46 . 1 Critical Kills 1 | . 1 . . . . . . . . . Critical Parts Destroyed . | . . . . . . . . . . . Critical Strikes 1 | . 1 . . . . . . . . . Destroy 1 | . 1 . . . . . . . . . Melee Attacks . | . . . . . . . . . . . Impact . | . . . . . . . . . . . Slashing . | . . . . . . . . . . . Piercing . | . . . . . . . . . . . Sneak Attacks . | . . . . . . . . . . . Combat Hostiles . | . . . . . . . . . . . Follow-up Attacks . | . . . . . . . . . . . Damage Inflicted 2659 | . 359 145 . 111 89 156 343 1412 . 44 Guns 1239 | . 359 145 . 62 39 65 189 380 . . Cannons 1017 | . . . . 46 50 91 153 635 . 42 Explosions 397 | . . . . . . . . 397 . . Melee . | . . . . . . . . . . . Ramming 6 | . . . . 3 . . 1 . . 2 Kinetic 2194 | . 339 145 . 108 89 156 342 1015 . . Thermal . | . . . . . . . . . . . Explosive 397 | . . . . . . . . 397 . . Electromagnetic 62 | . 20 . . . . . . . . 42 Impact . | . . . . . . . . . . . Slashing . | . . . . . . . . . . . Piercing . | . . . . . . . . . . . Highest Corruption 27 | . . . . 2 . . 2 27 27 . Average Corruption 11 | . . . . 1 . . 1 15 27 . Corruption Purged . | . . . . . . . . . . . Corruption Blocked . | . . . . . . . . . . . Effects 64 | . . . . 3 . . 2 56 3 . Message Errors 11 | . . . . 1 . . 1 8 1 . Matter Fused 14 | . . . . . . . . 13 1 . Heat Flow Errors 2 | . . . . . . . . 2 . . Energy Discharges 13 | . . . . 2 . . . 11 . . Parts Rejected 1 | . . . . . . . . 1 . . Parts Fused 1 | . . . . . . . . 1 . . Data Loss (minor) 8 | . . . . . . . . 8 . . Data Loss (major) 7 | . . . . . . . 1 6 . . Misfires 4 | . . . . . . . . 4 . . Alerts 2 | . . . . . . . . 1 1 . Misdirections 1 | . . . . . . . . 1 . . Overload Shots . | . . . . . . . . . . . Overflow Damage 8 | . . . . . . . . 8 . . Projectiles . | . . . . . . . . . . . Explosions 8 | . . . . . . . . 8 . . Melee . | . . . . . . . . . . . Knockbacks 23 | . . . . 1 3 2 6 11 . . Impact . | . . . . . . . . . . . Kinetic 22 | . . . . 1 3 2 5 11 . . Secondary 1 | . . . . . . . 1 . . . Self-Inflicted Damage 164 | . . . . . . . . 164 . . Shots 5 | . . . . . . . . 5 . . Rammed 5 | . . . . 1 . . . . . 4 Targets Rammed 6 | . . . . 1 . . 1 . . 4 Kicked 1 | . . . . . . . 1 . . . Crushed . | . . . . . . . . . . . Highest Temperature 264 | . 40 2 . 45 39 8 42 264 . 9 Average Temperature 27 | . 9 1 . 24 10 6 25 76 . 9 Received Heat Transfer 1008 | . 162 9 . . 81 18 70 153 . 515 Siege Activations 1 | . . . . . . . . 1 . . Total Turns 15 | . . . . . . . . 15 . . Longest Duration 15 | . . . . . . . . 15 . . Robots Corrupted . | . . . . . . . . . . . Combat Hostiles . | . . . . . . . . . . . Parts Fried . | . . . . . . . . . . . Impact Corruptions . | . . . . . . . . . . . Robots Melted . | . . . . . . . . . . . Combat Hostiles . | . . . . . . . . . . . Parts Melted . | . . . . . . . . . . . Heat Transferred . | . . . . . . . . . . . Parts Sabotaged . | . . . . . . . . . . . Parts Stolen . | . . . . . . . . . . . Parts Stripped . | . . . . . . . . . . . Power Chain Reactions . | . . . . . . . . . . . Alert | -11 -10 -9 -8 -7 -6 -5 -4 -4 -4 -3 ------- Run | Yrd Mat Mat Mat Fac Fac Fac Fac Upp Upp Res Peak Influence 143 | . 111 143 5 30 34 55 71 . . . Initial 26 | . . . . . 14 . 26 . . . Average 22 | . 47 64 3 8 11 25 23 . . . Maximum Alert Level . | . . . . . . . . . . . Low Security (%) 100 | 100 100 100 100 100 100 100 100 . . 100 Level 1 . | . . . . . . . . . . . Level 2 . | . . . . . . . . . . . Level 3 . | . . . . . . . . . . . Level 4 . | . . . . . . . . . . . Level 5 . | . . . . . . . . . . . High Security . | . . . . . . . . . . . Max Security . | . . . . . . . . . . . Squads Dispatched 15 | . 1 . 2 1 3 6 2 . . . Investigation 1 | . . . . . 1 . . . . . Extermination 2 | . . . . 1 . . 1 . . . Reinforcement 9 | . 1 . 2 . 2 3 1 . . . Assault . | . . . . . . . . . . . Garrison 3 | . . . . . . 3 . . . . Intercept . | . . . . . . . . . . . Searches Triggered . | . . . . . . . . . . . Construction Impeded . | . . . . . . . . . . . Haulers Reinforced 3 | . . . . . 1 1 1 . . . Active Scanning Responses . | . . . . . . . . . . . Cargo Convoy Interrupts . | . . . . . . . . . . . Stealth | -11 -10 -9 -8 -7 -6 -5 -4 -4 -4 -3 --------- Run | Yrd Mat Mat Mat Fac Fac Fac Fac Upp Upp Res Distress Signals 4 | . . 1 . . . 3 . . . . Communications Jammed . | . . . . . . . . . . . Distress Signals . | . . . . . . . . . . . Times Spotted 77 | . 6 5 1 2 12 20 9 17 . 5 Peak Tracking Total 8 | . 3 4 1 1 3 8 3 5 . 5 Tactical Retreats 3 | . . 1 . . . . 1 1 . . Traps | -11 -10 -9 -8 -7 -6 -5 -4 -4 -4 -3 ------- Run | Yrd Mat Mat Mat Fac Fac Fac Fac Upp Upp Res Traps Triggered 5 | . 1 . 2 . 1 . 1 . . . Indirectly . | . . . . . . . . . . . Trap Hack Attempts . | . . . . . . . . . . . Triggered . | . . . . . . . . . . . Disarmed . | . . . . . . . . . . . Reprogrammed . | . . . . . . . . . . . Reused . | . . . . . . . . . . . Traps Extracted . | . . . . . . . . . . . Installed . | . . . . . . . . . . . Triggered . | . . . . . . . . . . . Machines | -11 -10 -9 -8 -7 -6 -5 -4 -4 -4 -3 ---------- Run | Yrd Mat Mat Mat Fac Fac Fac Fac Upp Upp Res Machines Disabled 1 | . 1 . . . . . . . . . Max in Single Turn 1 | . 1 . . . . . . . . . Machines Repaired . | . . . . . . . . . . . Machines Dismantled . | . . . . . . . . . . . Machines Sabotaged . | . . . . . . . . . . . Overloaded Fab Kills . | . . . . . . . . . . . Hacking | -11 -10 -9 -8 -7 -6 -5 -4 -4 -4 -3 --------- Run | Yrd Mat Mat Mat Fac Fac Fac Fac Upp Upp Res Machines Accessed 8 | . 2 1 2 1 1 . 1 . . . Terminals 6 | . 2 1 1 . 1 . 1 . . . Fabricators 1 | . . . . 1 . . . . . . Repair Stations 1 | . . . 1 . . . . . . . Recycling Units . | . . . . . . . . . . . Scanalyzers . | . . . . . . . . . . . Garrison Access . | . . . . . . . . . . . Total Hacks 14 | . 4 2 4 1 2 . 1 . . . Successful 9 | . 3 1 4 1 . . . . . . Failed 5 | . 1 1 . . 2 . 1 . . . Catastrophic 1 | . 1 . . . . . . . . . Database Lockouts . | . . . . . . . . . . . Manual . | . . . . . . . . . . . Terminals 11 | . 4 2 2 . 2 . 1 . . . Fabricators 1 | . . . . 1 . . . . . . Repair Stations 2 | . . . 2 . . . . . . . Recycling Units . | . . . . . . . . . . . Scanalyzers . | . . . . . . . . . . . Garrison Access . | . . . . . . . . . . . Terminal Hacks 6 | . 3 1 2 . . . . . . . Record 3 | . 3 . . . . . . . . . Alert Level 1 | . . . 1 . . . . . . . Maintenance Status 1 | . . 1 . . . . . . . . Zone Layout 1 | . . . 1 . . . . . . . Fabricator Hacks 1 | . . . . 1 . . . . . . Network Status 1 | . . . . 1 . . . . . . Repair Station Hacks 2 | . . . 2 . . . . . . . Scan Component 1 | . . . 1 . . . . . . . Repair 1 | . . . 1 . . . . . . . Recycling Unit Hacks . | . . . . . . . . . . . Scanalyzer . | . . . . . . . . . . . Garrison Access Hacks . | . . . . . . . . . . . Unauthorized Hacks . | . . . . . . . . . . . Terminals . | . . . . . . . . . . . Fabricators . | . . . . . . . . . . . Repair Stations . | . . . . . . . . . . . Recycling Units . | . . . . . . . . . . . Scanalyzers . | . . . . . . . . . . . Garrison Access . | . . . . . . . . . . . Data Cores Recovered . | . . . . . . . . . . . Used . | . . . . . . . . . . . Hacking Detections 5 | . . 1 2 . 1 . 1 . . . Full Trace Events . | . . . . . . . . . . . Feedback Events . | . . . . . . . . . . . Feedback Blocked . | . . . . . . . . . . . Robot Schematics Acquired . | . . . . . . . . . . . Robots Built . | . . . . . . . . . . . Authchips . | . . . . . . . . . . . Time . | . . . . . . . . . . . Total Robot Build Rating . | . . . . . . . . . . . Part Schematics Acquired . | . . . . . . . . . . . Parts Built . | . . . . . . . . . . . Authchips . | . . . . . . . . . . . Time . | . . . . . . . . . . . Total Part Build Rating . | . . . . . . . . . . . Parts Repaired 1 | . . . 1 . . . . . . . Time 26 | . . . 26 . . . . . . . Parts Recycled . | . . . . . . . . . . . Recycled Matter . | . . . . . . . . . . . Retrieved Matter . | . . . . . . . . . . . Retrieved Components . | . . . . . . . . . . . Parts Scanalyzed . | . . . . . . . . . . . Part Schematics Acquired . | . . . . . . . . . . . Parts Damaged . | . . . . . . . . . . . Bothacking | -11 -10 -9 -8 -7 -6 -5 -4 -4 -4 -3 ------------ Run | Yrd Mat Mat Mat Fac Fac Fac Fac Upp Upp Res Used RIF Installer . | . . . . . . . . . . . Robots Hacked . | . . . . . . . . . . . Non-combat . | . . . . . . . . . . . Combat . | . . . . . . . . . . . Robot Hacks Applied . | . . . . . . . . . . . Relay Couplers Released . | . . . . . . . . . . . Fabnet Peak Effective % . | . . . . . . . . . . . Robots Rewired . | . . . . . . . . . . . Allies Hacked . | . . . . . . . . . . . Hacks Repelled . | . . . . . . . . . . . Allies | -11 -10 -9 -8 -7 -6 -5 -4 -4 -4 -3 -------- Run | Yrd Mat Mat Mat Fac Fac Fac Fac Upp Upp Res Total Allies . | . . . . . . . . . . . Largest Group . | . . . . . . . . . . . Highest-Rated Group . | . . . . . . . . . . . Highest-Rated Ally . | . . . . . . . . . . . Total Orders . | . . . . . . . . . . . Ally Attacks . | . . . . . . . . . . . Total Damage . | . . . . . . . . . . . Kills . | . . . . . . . . . . . Allies Corrupted . | . . . . . . . . . . . Allies Melted . | . . . . . . . . . . . Intel | -11 -10 -9 -8 -7 -6 -5 -4 -4 -4 -3 ------- Run | Yrd Mat Mat Mat Fac Fac Fac Fac Upp Upp Res Robot Analysis Total . | . . . . . . . . . . . Derelict Logs Recovered 2 | . . . . . . . . 2 . . Drone Launches . | . . . . . . . . . . . Drone Recoveries . | . . . . . . . . . . . Exploration | -11 -10 -9 -8 -7 -6 -5 -4 -4 -4 -3 ------------- Run | Yrd Mat Mat Mat Fac Fac Fac Fac Upp Upp Res Turns Passed 5915 | 68 484 514 531 771 716 367 798 1431 52 183 Spaces Moved 3190 | 52 308 267 295 456 410 179 528 624 35 36 Core 21 | 4 . 3 . . . . . 2 . 12 Treads 1520 | . . 19 295 456 410 165 . 175 . . Legs 1352 | 48 308 245 . . . 14 528 209 . . Wheels 297 | . . . . . . . . 238 35 24 Hover . | . . . . . . . . . . . Flight . | . . . . . . . . . . . Fastest Speed 50 | 50 120 120 160 165 165 120 120 120 145 145 Average Speed 159 | 114 121 174 162 165 165 169 120 188 145 342 Slowest Speed 1250 | 120 400 350 165 165 165 400 120 1250 145 900 Overloaded Moves . | . . . . . . . . . . . Propulsion Burnouts . | . . . . . . . . . . . Robots Hopped . | . . . . . . . . . . . Cave-ins Triggered 3 | . . . . . . . . 3 . . Exploration Rate (%) 19 | 4 28 20 25 9 17 6 11 75 14 2 Regions Visited 10 Branch Regions 2 Pre-discovered Areas . | . . . . . . . . . . . Known Exits Taken 6 | . . . . 1 1 1 1 1 1 . Unknown Exits Taken 4 | 1 1 1 1 . . . . . . . Scrap Searched 1 | . . . . . . . . 1 . . Spaces Dug 15 | . . . . . . . . 15 . . Terrain Destroyed 99 | . . . . . . . . 99 . . Melee . | . . . . . . . . . . . Projectile 4 | . . . . . . . . 4 . . AOE 95 | . . . . . . . . 95 . . Terrain Rammed . | . . . . . . . . . . . Walls Destroyed . | . . . . . . . . . . . Machines Disabled . | . . . . . . . . . . . Actions | -11 -10 -9 -8 -7 -6 -5 -4 -4 -4 -3 --------- Run | Yrd Mat Mat Mat Fac Fac Fac Fac Upp Upp Res Total 3805 | 57 384 294 349 470 443 234 674 778 37 85 Wait 319 | . 23 . 23 . 22 39 121 54 . 37 Move 3180 | 51 307 266 294 455 409 178 527 623 34 36 Hop . | . . . . . . . . . . . Pick Up 50 | . 17 4 8 5 3 2 4 4 . 3 Fast Attach 31 | 6 3 3 5 . 1 5 1 6 . 1 Attach 35 | . 3 4 4 3 1 2 2 14 1 1 Detach 13 | . . 1 2 . 1 4 . 3 1 1 Swap 9 | . 3 . 5 . . . 1 . . . Drop 37 | . 10 5 8 3 2 . 7 1 1 . Fire 120 | . 18 11 . 3 4 4 10 68 . 2 Melee . | . . . . . . . . . . . Ram 4 | . . . . . . . . . . 4 Kick 1 | . . . . . . . 1 . . . Crush 1 | . . . . 1 . . . . . . Escape Stasis . | . . . . . . . . . . . Rewire 5 | . . . . . . . . 5 . . Trap . | . . . . . . . . . . . Miscellaneous . | . . . . . . . . . . . Route ------- -11/Scrapyard -10/Materials -9/Materials -8/Materials -7/Factory (discovered 2 exits: *Fac / *Low) -6/Factory -5/Factory (discovered 2 exits: *Fac / *Upp) -4/Factory -4/Upper Caves -4/Upper Caves -3/Research (discovered 1 exit: Qua) History --------- Turn | Location | Event 6 | -11/Scrapyard | Discovered new exit (range 15) 69 | -11/Scrapyard | Entered Materials 312 | -10/Materials | Build established: Mutant 502 | -10/Materials | Discovered new exit (range 3) 553 | -10/Materials | Entered another Materials area 553 | -9/Materials | Evolved 2 slots: Propulsion x1, Utility x1 973 | -9/Materials | Discovered new exit (range 8) 1067 | -9/Materials | Entered another Materials area 1067 | -8/Materials | Evolved 2 slots: Propulsion x1, Utility x1 1116 | -8/Materials | Repaired Sml. Storage Unit 1312 | -8/Materials | Discovered new exit (range 16) 1318 | -8/Materials | Met 7R-MNS 1598 | -8/Materials | Entered Factory 1598 | -7/Factory | Evolved 2 slots: Utility x2 1599 | -7/Factory | Caught up to 7R-MNS 1809 | -7/Factory | Discovered new exit (range 9) 1897 | -7/Factory | Build established: Skirmisher 2118 | -7/Factory | Identified exit to Lower Caves 2258 | -7/Factory | Build established: Scavenger-Skirmisher 2341 | -7/Factory | Discovered new exit (range 15) 2368 | -7/Factory | Identified exit to Factory 2369 | -7/Factory | Entered another Factory area 2369 | -6/Factory | Evolved 2 slots: Propulsion x1, Utility x1 2370 | -6/Factory | Caught up to 7R-MNS 2546 | -6/Factory | Spotted B-75 Beast 2902 | -6/Factory | Build established: Scavenger-Mutant 3072 | -6/Factory | Discovered new exit (range 5) 3079 | -6/Factory | Identified exit to Factory 3085 | -6/Factory | Entered another Factory area 3085 | -5/Factory | Evolved 2 slots: Utility x1, Weapon x1 3086 | -5/Factory | Caught up to 7R-MNS 3118 | -5/Factory | Discovered new exit (range 11) 3134 | -5/Factory | Identified exit to Upper Caves 3248 | -5/Factory | Garrison activated, responded to threat 3373 | -5/Factory | Build established: Scavenger-Skirmisher 3388 | -5/Factory | Discovered new exit (range 16) 3435 | -5/Factory | Identified exit to Factory 3452 | -5/Factory | Entered another Factory area 3452 | -4/Factory | Evolved 2 slots: Propulsion x1, Utility x1 3453 | -4/Factory | Caught up to 7R-MNS 3955 | -4/Factory | Build established: Scavenger-Tank 4232 | -4/Factory | Discovered new exit (range 13) 4246 | -4/Factory | Identified exit to Upper Caves 4249 | -4/Factory | 7R-MNS successfully reached the Upper Caves 4250 | -4/Factory | Entered Upper Caves 4627 | -4/Upper Caves | Lost 7 parts (5n1u1w) 4876 | -4/Upper Caves | Build established: Skirmisher 4967 | -4/Upper Caves | Crushed by falling debris 4967 | -4/Upper Caves | System corruption reached 10% 4971 | -4/Upper Caves | Crushed by falling debris 5002 | -4/Upper Caves | Lost 6 parts (5u1w) 5084 | -4/Upper Caves | Found DCF Scrap (13 items) 5263 | -4/Upper Caves | Learned Research emergency access door positions 5416 | -4/Upper Caves | Build established: Derelict-Gunner 5450 | -4/Upper Caves | Crushed by falling debris 5575 | -4/Upper Caves | Spotted B-86 Titan 5601 | -4/Upper Caves | Core integrity fell below 50% 5668 | -4/Upper Caves | Discovered new exit (range 11) 5679 | -4/Upper Caves | Identified exit to Upper Caves 5681 | -4/Upper Caves | Entered another Upper Caves area 5710 | -4/Upper Caves | Lost 11 parts (1p3n3u4w) 5717 | -4/Upper Caves | Discovered new exit (range 15) 5731 | -4/Upper Caves | Identified exit to Research 5733 | -4/Upper Caves | Entered Research 5733 | -3/Research | Evolved 2 slots: Propulsion x1, Utility x1 5734 | -3/Research | Identified exit to Quarantine 5896 | -3/Research | Core integrity fell below 50% 5911 | -3/Research | Core integrity fell below 20% 5916 | -3/Research | Destroyed by G-67 Veteran with Plasma Rifle Last Messages --------------- Loading 1 Quarantine entrance... Loading Research emergency access points (x35)... Acquired HERF Cannon. Acquired Prototype Leg. Acquired Adv. Thermal Shield. ALERT: All DSF locations entering lockdown mode. Critical hit (Burn: +37). Critical hit (Burn: +50). Med. Storage Unit destroyed. Faulty Antimatter Cannon destroyed. Critical hit (Burn: +37). Antimatter Reactor destroyed. HERF Cannon destroyed. G-73 Enforcer misfires. Slammed into G-73 Enforcer. Critical hit (Burn: +37). G-73 Enforcer destroyed. Critical hit (Burn: +50). Acquired Myomer Leg. Map ----- +----------------------------------------------------+ | ?????????????????????????????????????????????????? | | ?????????????????????????????????????????????????? | | ?????????????????????????????????????????????????? | | ?????????????????????????????????????????????????? | | ?????????????????????????????????????????????????? | | ?????????????????????????????????????????????????? | | ?????????????????????????????????????????????????? | | ????+??+?????????????????????????????????????????? | | ?????????????????????????????????????????????????? | | ????????????????????????###??????????????????????? | | ??????????????????????? #????????????????????? | | ??????????????????????? #????????????????????? | | ??????????????????????? #??????????#?????????? | | ??????????????????????? #??????????# ????????? | | ???????????????????????# ##?????????# #?????#?? | | ???????????????????????# T??? ????# #""?""#?? | | ???????????????????????# ?? ##### #""?""### | | ???????????????????????# #?# # | | ???????????????????????# #?# # | | ???????????????????????# #?# # | | ???????????????????????+ #?# """ # | | ???????????????????????# #?# """ # | | ???????????????????????# #?# """ # | | ???????????????????????# ! ### # | | ???????????????????????#*%! # | | ???????????????????????# @ # | | ???????????????????????# g + | | ???????????????????????# g g # | | ??????????????????????#####g#############+### # | | ??????????????????????# #?# # # | | ??????????????????????# #?# # # | | ??????????????????????# #?# ###### | | ??????????????????????# ### """ #????? | | ??????????????????????# + + """ #????? | | ??????????????????????# ### """ #????? | | ??????????????????????# #?# #????? | | ??????????????????????# #?# #????? | | ??????????????????????###########?###########????? | | ?????????????????????????????????????????????????? | | ?????????????????????????????????????????????????? | | ?????????????????????????????????????????????????? | | | | | | | | | | | | | | | | | | | +----------------------------------------------------+ Best States ------------- Heat Dissipation 46 Energy Generation 21 Energy Capacity 325 Matter Stores 300 Matter Capacity 300 Sight Range 16 Robot Scan Range 14 Terrain Scan Range 14 Terrain Scan Density 210 ECM Strength 2 Base Temperature (-) 200 Armor Coverage 150 Resistance: KI 25 Core Shielding 20 Evasion (%) 67 Armor Integrity Analysis 30 Recoil Reduction 4 Item Schematics ----------------- None Robot Schematics ------------------ None Fabricated ------------ Nothing Alien Tech Used ----------------- None Achievements -------------- Dangerous Findings Maybe Next Time I'll Detach My Launcher Challenges ------------ None Game ------ Seed SingularityCommCleaver Manual? 0 Play Time 01:37:23 Cumulative 12.0 hours Start 2024.08.07 @ 17:32:07 End 2024.08.08 @ 01:46:33 Sessions 1 Manual Loads 0 Difficulty Rogue Special Mode None Game No. 16 Rogue 13 Adventurer 3 Explorer 0 Win Type - Total 0 Types 0/0/0/0/0/0/0/0/0 Lore% 8 Gallery% 12 Achievement% 16 Wizard Run 0 Options --------- Layout 1 ASCII 0 Keyboard 0 Movement Arrows Keybinds 0 Fullscreen 1 Font 48/Smallcaps Map View 50x35 Zoom Use 0% Tactical HUD 0 Map Filters NONE Filters NONE Steam 1 RUN: b28fbae5-1c6d-4bdf-999c-e938d98a3ef6